fUSD/lending_fUSD_20251223
["ID","MTS","AMOUNT","RATE_DAILY","PERIOD"]
[399540191,1766465448141,-500.0,0.00017083,2]
[399540192,1766465448150,-215.0,0.00017083,2]
[399540193,1766465448160,-1557.0,0.00017087,2]
[399540194,1766465448170,-481.33,0.00017096,2]
[399540195,1766465448180,-500.0,0.0001711,2]
[399540196,1766465448189,-564.0,0.0001711,2]
[399540197,1766465448199,-715.0,0.0001711,2]
[399540198,1766465448209,-500.0,0.0001711,2]
[399540199,1766465448218,-474.0,0.0001711,2]
[399540200,1766465448227,-1005.0,0.0001711,2]
[399540201,1766465448237,-500.0,0.0001711,2]
[399540202,1766465448246,-500.0,0.00017137,2]
[399540203,1766465448256,-564.0,0.00017137,2]
[399540204,1766465448265,-715.0,0.00017137,2]
[399540205,1766465448274,-500.0,0.00017137,2]
[399540206,1766465448283,-474.0,0.00017137,2]
[399540207,1766465448293,-1005.0,0.00017137,2]
[399540208,1766465448304,-500.0,0.00017137,2]
[399540209,1766465448314,-1557.0,0.00017155,2]
[399540210,1766465448323,-394.24474848,0.00017165,2]
[399540211,1766465448332,-564.0,0.00017165,2]
[399540212,1766465448342,-715.0,0.00017165,2]
[399540213,1766465448350,-500.0,0.00017165,2]
[399540214,1766465448359,-474.0,0.00017165,2]
[399540215,1766465448368,-1005.0,0.00017165,2]
[399540216,1766465448377,-633.95186785,0.00017165,2]
[399540217,1766465448386,-200.0,0.0001717,2]
[399540218,1766465448395,-1000.0,0.00017178,2]
[399540219,1766465448408,-564.0,0.00017192,2]
[399540220,1766465448416,-715.0,0.00017192,2]
[399540221,1766465448426,-527.79470444,0.00017192,2]
[399540222,1766465448435,-474.0,0.00017192,2]
[399540223,1766465448445,-1005.0,0.00017192,2]
[399540224,1766465448455,-157.63,0.00017199,2]
[399540225,1766465448464,-1000.0,0.000172,2]
[399540226,1766465448474,-151.0,0.00017219,2]
[399540227,1766465448483,-564.0,0.0001722,2]
[399540228,1766465448492,-715.0,0.0001722,2]
[399540229,1766465448501,-474.0,0.0001722,2]
[399540230,1766465448509,-1005.0,0.0001722,2]
[399540231,1766465448518,-1098.0,0.00017234,2]
[399540232,1766465448527,-617.40005154,0.00017245,2]
[399540233,1766465448536,-564.0,0.00017247,2]
[399540234,1766465448545,-715.0,0.00017247,2]
[399540235,1766465448554,-474.0,0.00017247,2]
[399540236,1766465448563,-1005.0,0.00017247,2]
[399540237,1766465448572,-1142.68,0.0001726,2]
[399540238,1766465448581,-554.01,0.0001726,2]
[399540239,1766465448590,-554.01,0.0001726,2]
[399540240,1766465448599,-1107.8,0.0001726,2]
[399540241,1766465448608,-564.0,0.00017274,2]
[399540242,1766465448617,-715.0,0.00017274,2]
[399540243,1766465448626,-474.0,0.00017274,2]
[399540244,1766465448635,-1005.0,0.00017274,2]
[399540245,1766465448644,-564.0,0.00017302,2]
[399540246,1766465448653,-715.0,0.00017302,2]
[399540247,1766465448662,-474.0,0.00017302,2]
[399540248,1766465448671,-1005.0,0.00017302,2]
[399540249,1766465448680,-576.0,0.00017329,2]
[399540250,1766465448689,-732.7587784,0.00017329,2]
[399540251,1766465448698,-495.30569166,0.00017329,2]
[399540252,1766465448707,-1008.25840165,0.00017329,2]
[399540253,1766465448716,-200.0,0.00017342,2]
[399540254,1766465448725,-189.0,0.00017356,2]
[399540255,1766465448734,-500.0,0.0001737,2]
[399540256,1766465448743,-189.0,0.00017372,2]
[399540257,1766465448753,-1600.0,0.00017379,2]
[399540258,1766465448762,-189.0,0.00017419,2]
[399540259,1766465448771,-759.31,0.0001742,2]
[399540260,1766465448780,-166.66,0.00017442,2]
[399540261,1766465448789,-169.21,0.00017469,2]
[399540262,1766465448798,-200.0,0.00017515,2]
[399540263,1766465448807,-151.0,0.00017518,2]
[399540264,1766465448816,-1108.0,0.00017518,2]
[399540265,1766465448825,-334.5472959,0.00017518,2]
[399540266,1766465448834,-300.0,0.0001752,2]
[399540267,1766465448843,-300.0,0.0001752,2]
[399540268,1766465448851,-648.46173605,0.00017521,2]
[399540269,1766465448860,-1002.53802588,0.00017521,2]
[399540270,1766465448870,-839.91585429,0.00017521,2]
[399540271,1766465448879,-349.16265713,0.00017521,2]
[399540272,1766465448888,-1001.03274944,0.00017521,2]
[399540273,1766465448897,-1001.16055069,0.00017521,2]
[399540274,1766465448906,-1001.02286688,0.00017521,2]
[399540275,1766465448915,-1002.0439586,0.00017521,2]
[399540276,1766465448924,-1000.0,0.00017521,2]
[399540277,1766465448933,-1000.7814742,0.00017521,2]
[399540278,1766465448942,-1000.0,0.00017521,2]
[399540279,1766465448951,-912.90060705,0.00017521,2]
[399540280,1766465448961,-1077.35819012,0.00017521,2]
[399540281,1766465448971,-711.71097103,0.00017521,2]
[399540282,1766465448980,-598.60555363,0.00017521,2]
[399540283,1766465448989,-1000.0,0.00017521,2]
[399540284,1766465448998,-515.54072242,0.00017521,2]
[399540285,1766465449008,-559.28446362,0.00017521,2]
[399540286,1766465449017,-1000.0,0.00017521,2]
[399540287,1766465449027,-1000.0,0.00017521,2]
[399540288,1766465449036,-1001.32447433,0.00017521,2]
[399540289,1766465449045,-1000.0,0.00017521,2]
[399540290,1766465449054,-1000.0,0.00017521,2]
[399540291,1766465449064,-207.3850141,0.00017521,2]
[399540292,1766465449072,-1002.01127831,0.00017521,2]
[399540293,1766465449081,-1000.0,0.00017521,2]
[399540294,1766465449090,-1000.81090923,0.00017521,2]
[399540295,1766465449100,-654.81071554,0.00017521,2]
[399540296,1766465449109,-1000.4877743,0.00017521,2]
[399540297,1766465449118,-1000.0,0.00017521,2]
[399540298,1766465449127,-1001.26466692,0.00017521,2]
[399540299,1766465449137,-1000.73373882,0.00017521,2]
[399540300,1766465449146,-189.0,0.00017521,2]
[399540301,1766465449156,-151.0,0.00017521,2]
[399540302,1766465449165,-151.0,0.00017521,2]
[399540303,1766465449174,-180.013014,0.00017521,2]
[399540304,1766465449184,-151.0,0.00017521,2]
[399540305,1766465449193,-151.0,0.00017521,2]
[399540306,1766465449202,-151.0,0.00017521,2]
[399540307,1766465449211,-151.0,0.00017521,2]
[399540308,1766465449219,-151.0,0.00017521,2]
[399540309,1766465449228,-151.0,0.00017521,2]
[399540310,1766465449238,-281.12971,0.00017521,2]
[399540311,1766465449247,-151.0,0.00017521,2]
[399540312,1766465449257,-151.0,0.00017521,2]
[399540313,1766465449266,-163.847219,0.00017521,2]
[399540314,1766465449275,-151.0,0.00017521,2]
[399540315,1766465449285,-224.712304,0.00017521,2]
[399540316,1766465449294,-151.0,0.00017521,2]
[399540317,1766465449303,-179.576499,0.00017521,2]
[399540318,1766465449312,-179.576499,0.00017521,2]
[399540319,1766465449321,-179.576499,0.00017521,2]
[399540320,1766465449330,-179.576499,0.00017521,2]
[399540321,1766465449339,-314.126592,0.00017521,2]
[399540322,1766465449348,-314.126592,0.00017521,2]
[399540323,1766465449357,-314.126592,0.00017521,2]
[399540324,1766465449367,-314.126592,0.00017521,2]
[399540325,1766465449376,-151.0,0.00017521,2]
[399540326,1766465449386,-153.267166,0.00017521,2]
[399540327,1766465449395,-296.573018,0.00017521,2]
[399540328,1766465449409,-296.573018,0.00017521,2]
[399540329,1766465449419,-296.573018,0.00017521,2]
[399540330,1766465449429,-198.831341,0.00017521,2]
[399540331,1766465449439,-296.573018,0.00017521,2]
[399540332,1766465449450,-198.831341,0.00017521,2]
[399540333,1766465449460,-198.831341,0.00017521,2]
[399540334,1766465449469,-198.831341,0.00017521,2]
[399540335,1766465449481,-275.20158,0.00017521,2]
[399540336,1766465449491,-152.331222,0.00017521,2]
[399540337,1766465449500,-154.886796,0.00017521,2]
[399540338,1766465449510,-600.0,0.00017534,2]
[399540339,1766465449519,-601.74534373,0.0001757,2]
[399540340,1766465449528,-237.9,0.00017577,2]
[399540341,1766465449538,-189.0,0.00017586,2]
[399540342,1766465449547,-479.86646214,0.00017599,2]
[399540343,1766465449556,-481.33,0.00017671,2]
[399540344,1766465449566,-481.33,0.00017671,2]
[399540345,1766465449575,-481.33,0.00017671,2]
[399540346,1766465449584,-200.0,0.0001769,2]
[399540347,1766465449593,-189.0,0.00017762,2]
[399540348,1766465449604,-640.24385345,0.00017793,2]
[399540349,1766465449613,-189.0,0.00017809,2]
[399540350,1766465449622,-5531.18327,0.0001783,2]
[399540351,1766465449632,-189.0,0.00017837,2]
[399540352,1766465449642,-211.3,0.00017878,2]
[399540353,1766465449652,-158.57966565,0.00017927,2]
[399540354,1766465449662,-166.66,0.00017966,2]
[399540355,1766465449671,-233.02301459,0.00017973,2]
[399540356,1766465449680,-209.54229075,0.00017973,2]
[399540357,1766465449690,-300.0,0.00017999,2]
[399540358,1766465449699,-311.05061399,0.00017999,2]
[399540359,1766465449708,-190.0,0.00018,2]
[399540360,1766465449718,-60476.95558364,0.00018,7]
[399540361,1766465449728,-615616.161847,0.00018,2]
[399540362,1766465449737,-173.51,0.00018,2]
[399540363,1766465449747,-345432.35921136,0.00018,2]
[399540364,1766465449756,-12338.33694467,0.00018,2]
[399540365,1766465449766,-156.722334,0.00018,2]
[399540366,1766465449775,-186.626017,0.00018,2]
[399540367,1766465449784,-151.0,0.00018,2]
[399540368,1766465449794,-154.102555,0.00018,2]
[399540369,1766465449803,-151.0,0.00018,2]
[399540370,1766465449813,-151.0,0.00018,2]
[399540371,1766465449823,-153.089489,0.00018,2]
[399540372,1766465449833,-151.0,0.00018,2]
[399540373,1766465449842,-151.0,0.00018,2]
[399540374,1766465449852,-151.0,0.00018,2]
[399540375,1766465449862,-151.0,0.00018,2]
[399540376,1766465449872,-152.666571,0.00018,2]
[399540377,1766465449881,-179.576499,0.00018,2]
[399540378,1766465449890,-179.576499,0.00018,2]
[399540379,1766465449900,-179.576499,0.00018,2]
[399540380,1766465449909,-179.576499,0.00018,2]
[399540381,1766465449919,-314.126592,0.00018,2]
[399540382,1766465449928,-314.126592,0.00018,2]
[399540383,1766465449938,-314.126592,0.00018,2]
[399540384,1766465449948,-314.126592,0.00018,2]
[399540385,1766465449957,-151.0,0.00018,2]
[399540386,1766465449967,-296.573018,0.00018,2]
[399540387,1766465449976,-296.573018,0.00018,2]
[399540388,1766465449986,-296.573018,0.00018,2]
[399540389,1766465449996,-198.831341,0.00018,2]
[399540390,1766465450006,-296.573018,0.00018,2]
[399540391,1766465450015,-198.831341,0.00018,2]
[399540392,1766465450024,-198.831341,0.00018,2]
[399540393,1766465450034,-198.831341,0.00018,2]
[399540394,1766465450043,-189.0,0.00018003,2]
[399540395,1766465450053,-157.63,0.00018018,2]
[399540396,1766465450063,-189.0,0.00018019,2]
[399540397,1766465450073,-243.23874711,0.0001804,2]
[399540398,1766465450082,-152.0,0.00018057,3]
[399540399,1766465450092,-500.0,0.00018068,2]
[399540400,1766465450101,-500.0,0.00018068,2]
[399540401,1766465450110,-378.01407178,0.00018068,2]
[399540402,1766465450119,-500.0,0.00018068,2]
[399540403,1766465450129,-500.0,0.00018068,2]
[399540404,1766465450138,-500.0,0.00018068,2]
[399540405,1766465450147,-1500.0,0.00018068,2]
[399540406,1766465450157,-308.61264672,0.00018068,2]
[399540407,1766465450166,-693.74393665,0.00018068,2]
[399540408,1766465450176,-1500.0,0.00018068,2]
[399540409,1766465450186,-500.53228119,0.00018068,2]
[399540410,1766465450195,-440.34085092,0.00018068,2]
[399540411,1766465450204,-1500.0,0.00018068,2]
[399540412,1766465450214,-1500.0,0.00018068,2]
[399540413,1766465450223,-7560.9,0.0001808,2]
[399540414,1766465450232,-1000.0,0.00018082,2]
[399540415,1766465450241,-600.0,0.00018082,2]
[399540416,1766465450251,-554.01,0.00018082,2]
[399540417,1766465450261,-664.61265672,0.00018109,2]
[399540418,1766465450270,-317.19636672,0.00018128,2]
[399540419,1766465450280,-1098.0,0.00018141,2]
[399540420,1766465450289,-150.0,0.00018185,2]
[399540421,1766465450299,-169.21,0.00018279,2]
[399540422,1766465450308,-309.46072033,0.00018298,2]
[399540423,1766465450318,-663.93287602,0.00018341,2]
[399540424,1766465450328,-18405.13,0.00018356,2]
[399540425,1766465450337,-215.0738,0.0001836,2]
[399540426,1766465450347,-237.9,0.00018373,2]
[399540427,1766465450356,-166.66,0.0001849,2]
[399540428,1766465450365,-152.0,0.00018502,4]
[399540429,1766465450376,-1222.04159557,0.00018616,2]
[399540430,1766465450386,-1150.40009762,0.00018616,2]
[399540431,1766465450396,-1002.08339346,0.00018616,2]
[399540432,1766465450409,-313.39669887,0.00018616,2]
[399540433,1766465450419,-481.33,0.0001863,2]
[399540434,1766465450428,-481.33,0.0001863,2]
[399540435,1766465450437,-481.33,0.0001863,2]
[399540436,1766465450449,-481.33,0.0001863,2]
[399540437,1766465450458,-481.33,0.0001863,2]
[399540438,1766465450467,-481.33,0.0001863,2]
[399540439,1766465450479,-481.33,0.0001863,2]
[399540440,1766465450489,-481.33,0.0001863,2]
[399540441,1766465450498,-961.78,0.0001863,2]
[399540442,1766465450507,-600.0,0.0001863,2]
[399540443,1766465450516,-1349.35,0.0001868,2]
[399540444,1766465450526,-500.0,0.00018744,2]
[399540445,1766465450535,-500.0,0.00018744,2]
[399540446,1766465450545,-1000.0,0.0001876,2]
[399540447,1766465450554,-150.93,0.000188,2]
[399540448,1766465450564,-150.93,0.000188,2]
[399540449,1766465450573,-150.93,0.000188,2]
[399540450,1766465450583,-150.93,0.000188,2]
[399540451,1766465450592,-150.93,0.000188,2]
[399540452,1766465450602,-5531.18328,0.0001883,2]
[399540453,1766465450611,-157.63,0.00018837,2]
[399540454,1766465450621,-2241.0,0.00018852,2]
[399540455,1766465450631,-151.0,0.00018887,2]
[399540456,1766465450640,-1108.0,0.00018887,2]
[399540457,1766465450651,-346.92554585,0.00018887,2]
[399540458,1766465450661,-599.60298507,0.00018888,2]
[399540459,1766465450670,-747.8093786,0.00018888,2]
[399540460,1766465450680,-642.94,0.00018888,2]
[399540461,1766465450689,-688.49839244,0.00018889,2]
[399540462,1766465450699,-153.79464801,0.000189,2]
[399540463,1766465450708,-554.01,0.00018904,2]
[399540464,1766465450718,-554.01,0.00018904,2]
[399540465,1766465450727,-554.01,0.00018904,2]
[399540466,1766465450737,-554.01,0.00018904,2]
[399540467,1766465450747,-554.01,0.00018904,2]
[399540468,1766465450756,-554.01,0.00018904,2]
[399540469,1766465450765,-561.49,0.00018904,2]
[399540470,1766465450775,-554.01,0.00018904,2]
[399540471,1766465450784,-554.01,0.00018904,2]
[399540472,1766465450794,-554.01,0.00018904,2]
[399540473,1766465450803,-554.01,0.00018904,2]
[399540474,1766465450813,-554.01,0.00018904,2]
[399540475,1766465450823,-152.0,0.00018947,5]
[399540476,1766465450834,-1600.0,0.00018959,2]
[399540477,1766465450845,-300.0,0.00018999,2]
[399540478,1766465450854,-3133.52286995,0.00019,2]
[399540479,1766465450865,-157148.57142874,0.00019,2]
[399540480,1766465450875,-157148.57142874,0.00019,2]
[399540481,1766465450884,-300.0,0.00019,2]
[399540482,1766465450894,-932.68622685,0.00019,2]
[399540483,1766465450903,-356.89133829,0.0001901,7]
[399540484,1766465450913,-481.33,0.00019014,2]
[399540485,1766465450922,-479.86646214,0.0001906,2]
[399540486,1766465450933,-1000.0,0.00019087,2]
[399540487,1766465450942,-500.0,0.00019088,3]
[399540488,1766465450952,-1098.0,0.00019096,2]
[399540489,1766465450962,-3457.0,0.00019121,2]
[399540490,1766465450972,-1609.0,0.00019121,2]
[399540491,1766465450983,-1326.0,0.00019121,2]
[399540492,1766465450992,-612.0,0.00019121,2]
[399540493,1766465451001,-518.0,0.00019121,2]
[399540494,1766465451011,-1263.0,0.00019121,2]
[399540495,1766465451020,-2430.0,0.00019121,2]
[399540496,1766465451029,-564.0,0.00019121,2]
[399540497,1766465451039,-300.0,0.00019157,2]
[399540498,1766465451050,-16858.1734819,0.00019158,2]
[399540499,1766465451059,-1011.4476328,0.00019168,2]
[399540500,1766465451069,-300.0,0.00019177,2]
[399540501,1766465451079,-3000.0,0.00019178,2]
[399540502,1766465451088,-3017.91741699,0.00019178,7]
[399540503,1766465451098,-20061.77,0.00019178,2]
[399540504,1766465451107,-151.0,0.00019178,2]
[399540505,1766465451117,-151.0,0.00019178,2]
[399540506,1766465451128,-151.0,0.00019178,2]
[399540507,1766465451138,-2212.471978,0.00019178,2]
[399540508,1766465451148,-2212.471978,0.00019178,2]
[399540509,1766465451157,-2212.471978,0.00019178,2]
[399540510,1766465451167,-2212.471978,0.00019178,2]
[399540511,1766465451176,-2212.471978,0.00019178,2]
[399540512,1766465451185,-2212.471978,0.00019178,2]
[399540513,1766465451195,-2212.471978,0.00019178,2]
[399540514,1766465451204,-2212.471978,0.00019178,2]
[399540515,1766465451213,-151.0,0.00019178,2]
[399540516,1766465451223,-151.0,0.00019178,2]
[399540517,1766465451232,-600.0,0.00019178,2]
[399540518,1766465451242,-300.0,0.00019184,2]
[399540519,1766465451252,-25461.7181199,0.00019185,2]
[399540520,1766465451261,-2063.5682092,0.00019185,2]
[399540521,1766465451271,-4466.7883882,0.00019185,2]
[399540522,1766465451281,-1011.9105112,0.00019185,2]
[399540523,1766465451290,-926.2341878,0.00019185,2]
[399540524,1766465451299,-11621.41090142,0.00019249,2]
[399540525,1766465451308,-169.21,0.00019255,2]
[399540526,1766465451318,-150.0,0.00019273,2]
[399540527,1766465451327,-158.6,0.00019308,2]
[399540528,1766465451336,-211.3,0.00019374,2]
[399540529,1766465451346,-152.0,0.00019393,6]
[399540530,1766465451355,-397.76244075,0.000194,2]
[399540531,1766465451364,-169.2029656,0.00019422,2]
[399540532,1766465451374,-152.53710827,0.00019429,2]
[399540533,1766465451384,-500.0,0.00019433,2]
[399540534,1766465451393,-500.0,0.00019433,2]
[399540535,1766465451405,-500.0,0.00019433,2]
[399540536,1766465451415,-500.0,0.00019433,2]
[399540537,1766465451424,-500.0,0.00019433,2]
[399540538,1766465451434,-713.97283296,0.00019437,2]
[399540539,1766465451445,-1000.0,0.00019438,2]
[399540540,1766465451455,-158.6,0.00019447,2]
[399540541,1766465451465,-481.33,0.00019589,2]
[399540542,1766465451476,-481.33,0.00019589,2]
[399540543,1766465451486,-481.33,0.00019589,2]
[399540544,1766465451705,-484.48,0.00019589,2]
[399540545,1766465451715,-481.33,0.00019589,2]
[399540546,1766465451725,-481.33,0.00019589,2]
[399540547,1766465451734,-481.33,0.00019589,2]
[399540548,1766465451743,-481.33,0.00019589,2]
[399540549,1766465451752,-481.33,0.00019589,2]
[399540550,1766465451762,-481.33,0.00019589,2]
[399540551,1766465451771,-481.33,0.00019589,2]
[399540552,1766465451780,-481.33,0.00019589,2]
[399540553,1766465451789,-3761.5669488,0.00019639,2]
[399540554,1766465451798,-225.6844723,0.00019653,2]
[399540555,1766465451808,-157.63,0.00019656,2]
[399540556,1766465451817,-5681.2772417,0.00019673,2]
[399540557,1766465451827,-460.444305,0.00019673,2]
[399540558,1766465451837,-996.6752084,0.00019673,2]
[399540559,1766465451846,-225.7877544,0.00019673,2]
[399540560,1766465451856,-206.6707826,0.00019673,2]
[399540561,1766465451866,-7560.9,0.00019722,2]
[399540562,1766465451876,-600.0,0.00019726,2]
[399540563,1766465451885,-615.75631953,0.00019726,2]
[399540564,1766465451894,-554.01,0.00019726,2]
[399540565,1766465451903,-554.01,0.00019726,2]
[399540566,1766465451912,-554.01,0.00019726,2]
[399540567,1766465451922,-554.01,0.00019726,2]
[399540568,1766465451931,-554.01,0.00019726,2]
[399540569,1766465451940,-554.01,0.00019726,2]
[399540570,1766465451949,-554.01,0.00019726,2]
[399540571,1766465451958,-554.01,0.00019726,2]
[399540572,1766465451967,-554.01,0.00019726,2]
[399540573,1766465451977,-554.01,0.00019726,2]
[399540574,1766465451987,-1108.02,0.00019726,2]
[399540575,1766465451997,-554.01,0.00019726,2]
[399540576,1766465452006,-554.01,0.00019726,2]
[399540577,1766465452016,-554.01,0.00019726,2]
[399540578,1766465452025,-554.01,0.00019726,2]
[399540579,1766465452035,-554.01,0.00019726,2]
[399540580,1766465452045,-554.01,0.00019726,2]
[399540581,1766465452055,-554.01,0.00019726,2]
[399540582,1766465452064,-1108.02,0.00019726,2]
[399540583,1766465452073,-1318.79,0.00019781,2]
[399540584,1766465452083,-659.46,0.00019781,2]
[399540585,1766465452092,-659.46,0.00019781,2]
[399540586,1766465452101,-659.46,0.00019781,2]
[399540587,1766465452111,-659.46,0.00019781,2]
[399540588,1766465452120,-664.61265672,0.00019782,2]
[399540589,1766465452129,-250.0,0.00019821,2]
[399540590,1766465452138,-5531.18327,0.0001983,2]
[399540591,1766465452148,-152.0,0.00019838,7]
[399540592,1766465452157,-4904.27723025,0.000199,3]
[399540593,1766465452167,-190.27054747,0.000199,2]
[399540594,1766465452176,-962.66,0.00019973,2]
[399540595,1766465452185,-481.33,0.00019973,2]
[399540596,1766465452195,-740.38982778,0.00019985,2]
[399540597,1766465452204,-300.0,0.00019999,2]
[399540598,1766465452213,-41265.57417572,0.0002,5]
[399540599,1766465452223,-500.0,0.0002,2]
[399540600,1766465452233,-200.0,0.0002,2]
[399540601,1766465452243,-590.60971324,0.0002,2]
[399540602,1766465452253,-28275.63496417,0.0002,2]
[399540603,1766465452786,-238102.69098972,0.0002,2]
[399540604,1766465452963,-481.33,0.00017671,2]
[399540605,1766465452973,-554.09,0.00018082,2]
[399540606,1766465452984,-6858.97866846,0.0002,2]
[399540607,1766465452995,-35441.08792323,0.0002,2]
[399540608,1766465453006,-740.72218049,0.0002,2]
[399540609,1766465453018,-621.329991,0.0002,2]
[399540610,1766465453029,-500.0,0.0002,2]
[399540611,1766465453041,-4963.42952712,0.0002,2]
[399540612,1766465453052,-781.47808843,0.0002,2]
[399540613,1766465453229,-12127.1228994,0.0002,2]
[399540614,1766465453244,-657.5104487,0.0002,2]
[399540615,1766465453265,-2700.0,0.0002,2]
[399540616,1766465453276,-135421.5888645,0.0002,2]
[399540617,1766465453285,-17236.248862,0.0002,2]
[399540618,1766465453294,-3088.33,0.0002,2]
[399540619,1766465453303,-3950.0,0.0002,2]
[399540620,1766465453313,-73732.56190023,0.0002,2]
[399540621,1766465453322,-7264.20557189,0.0002,2]
[399540622,1766465453332,-1289.95044709,0.0002,2]
[399540623,1766465453342,-1041.20556665,0.0002,2]
[399540624,1766465453352,-2853.3316228,0.0002,2]
[399540625,1766465453361,-12879.51365996,0.0002,2]
[399540626,1766465453370,-398.0,0.0002,2]
[399540627,1766465453380,-151.0,0.0002,2]
[399540628,1766465453389,-248.941271,0.0002,2]
[399540629,1766465453400,-151.0,0.0002,2]
[399540630,1766465453412,-151.0,0.0002,2]
[399540631,1766465453421,-151.0,0.0002,2]
[399540632,1766465453430,-2212.471978,0.0002,2]
[399540633,1766465453439,-2212.471978,0.0002,2]
[399540634,1766465453450,-2212.471978,0.0002,2]
[399540635,1766465453459,-2212.471978,0.0002,2]
[399540636,1766465453468,-151.0,0.0002,2]
[399540637,1766465453477,-151.0,0.0002,2]
[399540638,1766465453488,-179.576499,0.0002,2]
[399540639,1766465453498,-179.576499,0.0002,2]
[399540640,1766465453507,-179.576499,0.0002,2]
[399540641,1766465453516,-179.576499,0.0002,2]
[399540642,1766465453525,-314.126592,0.0002,2]
[399540643,1766465453534,-314.126592,0.0002,2]
[399540644,1766465453544,-314.126592,0.0002,2]
[399540645,1766465453553,-314.126592,0.0002,2]
[399540646,1766465453562,-151.0,0.0002,2]
[399540647,1766465453571,-186.82,0.0002,2]
[399540648,1766465453581,-188.92394436,0.0002,20]
[399540649,1766465453589,-296.573018,0.0002,2]
[399540650,1766465453601,-296.573018,0.0002,2]
[399540651,1766465453611,-296.573018,0.0002,2]
[399540652,1766465453620,-198.831341,0.0002,2]
[399540653,1766465453629,-296.573018,0.0002,2]
[399540654,1766465453637,-198.831341,0.0002,2]
[399540655,1766465453730,-198.831341,0.0002,2]
[399540656,1766465453740,-198.831341,0.0002,2]
[399540657,1766465453749,-151.0,0.0002,2]
[399540658,1766465453758,-1000.0,0.0002,7]
[399540659,1766465453767,-150.0,0.0002,2]
[399540660,1766465453778,-150.0,0.0002,2]
[399540661,1766465453787,-194.12518112,0.0002,2]
[399540662,1766465453796,-500.0,0.00020001,2]
[399540663,1766465453806,-500.0,0.00020002,2]
[399540664,1766465453815,-499.9999,0.00020003,2]
[399540665,1766465453825,-8720.0,0.0002001,2]
[399540666,1766465453834,-1500.0,0.00020082,7]
[399540667,1766465453843,-900.0,0.00020082,7]
[399540668,1766465453853,-1003.22925053,0.000201,2]
[399540669,1766465453862,-1098.0,0.00020101,2]
[399540670,1766465453871,-1000.0,0.00020116,2]
[399540671,1766465453880,-1000.0,0.00020187,2]
[399540672,1766465453889,-946.0,0.000202,2]
[399540673,1766465453899,-217.57602405,0.00020256,2]
[399540674,1766465453908,-1108.0,0.00020256,2]
[399540675,1766465453917,-359.76179104,0.00020256,2]
[399540676,1766465453926,-600.0,0.00020274,2]
[399540677,1766465453935,-152.0,0.00020283,8]
[399540678,1766465453945,-1500.0,0.00020356,7]
[399540679,1766465453954,-350.0,0.00020368,2]
[399540680,1766465453964,-479.86646214,0.00020521,2]
[399540681,1766465453973,-767.7842514,0.00020533,2]
[399540682,1766465453983,-300.0,0.00020547,2]
[399540683,1766465453992,-481.37,0.00020548,2]
[399540684,1766465454002,-481.37,0.00020548,2]
[399540685,1766465454011,-481.33,0.00020548,2]
[399540686,1766465454020,-481.33,0.00020548,2]
[399540687,1766465454029,-481.33,0.00020548,2]
[399540688,1766465454039,-481.33,0.00020548,2]
[399540689,1766465454048,-481.33,0.00020548,2]
[399540690,1766465454058,-481.33,0.00020548,2]